bitfinex-derivatives/quotes_ETHF0:USTF0_20250917
["timestamp","ask_amount","ask_price","bid_price","bid_amount"]
[1758087943182,0.42234982,4492.7,4492.6,0.7202]
[1758087944669,0.72294982,4492.7,4492.6,0.7202]
[1758087945287,0.92224982,4492.7,4492.6,0.7202]
[1758087945982,0.21564982,4492.7,4492.6,0.7202]
[1758087946681,0.21564982,4492.7,4492.4,0.3186]
[1758087946876,0.7066,4492.5,4492.4,0.7424]
[1758087947076,0.62164982,4492.5,4492.4,0.7424]
[1758087947381,0.42234982,4492.5,4492.4,0.7424]
[1758087947676,0.42234982,4492.5,4492.4,0.7202]
[1758087947876,0.7066,4493.3,4493.2,0.2112]
[1758087948084,0.92480442,4493.3,4493.2,0.2112]
[1758087948277,0.2067,4493.3,4493.2,0.7202]
[1758087948479,0.7066,4493.3,4493.2,0.7202]
[1758087949386,0.406,4493.3,4493.2,0.7202]
[1758087949886,0.7066,4493.3,4493.2,0.7202]
[1758087950184,0.406,4493.3,4493.2,0.7202]
[1758087950384,0.2067,4493.3,4493.2,0.7202]
[1758087951582,0.406,4493.3,4493.2,0.7202]
[1758087951782,0.7066,4493.3,4493.2,0.7202]
[1758087951979,0.406,4493.3,4493.2,0.7202]
[1758087952878,0.7066,4493.3,4493.2,0.7202]
[1758087953885,0.7066,4493.3,4493.0,0.0222]
[1758087954086,0.7066,4493.3,4493.0,0.3186]
[1758087954280,0.406,4493.3,4493.2,0.2112]
[1758087954485,0.406,4493.3,4493.2,0.5076]
[1758087954987,0.7245,4493.3,4493.2,0.5076]
[1758087955388,0.7245,4493.3,4493.0,0.0222]
[1758087955389,1.0005,4493.3,4493.0,0.0222]
[1758087956288,0.7245,4493.3,4493.0,0.0222]
[1758087956484,0.6849,4493.2,4493.1,0.2103]
[1758087956689,1.0034,4493.2,4493.1,0.2103]
[1758087957282,1.0034,4493.2,4493.1,0.7327]
[1758087957886,0.7274,4493.2,4493.1,0.7327]
[1758087958390,0.7274,4493.2,4493.0,0.0222]
[1758087958991,0.4089,4493.2,4493.1,0.512]
[1758087959194,0.4089,4493.2,4493.1,0.7286]
[1758087959493,0.7296,4493.2,4493.1,0.2132]
[1758087959694,0.7296,4493.2,4493.0,0.0222]
[1758087960797,0.4089,4493.2,4493.1,0.512]
[1758087960989,0.4089,4493.2,4493.0,0.0222]
[1758087961294,0.7411,4493.1,4493.0,0.0222]
[1758087961698,0.2069,4493.0,4492.9,0.512]
[1758087961890,0.7411,4493.0,4492.9,0.512]
[1758087962195,0.8687,4493.0,4492.9,0.512]
[1758087962396,0.3207,4492.9,4492.6,3.5066]
[1758087962596,0.4204,4492.7,4492.6,3.7198]
[1758087962797,0.7411,4492.7,4492.6,3.7198]
[1758087963596,0.7411,4492.7,4492.6,3.9364]
[1758087964589,0.7411,4492.7,4492.6,3.2078]
[1758087964797,0.7411,4492.7,4492.6,3.7198]
[1758087964998,0.7411,4492.7,4492.6,3.9364]
[1758087966899,4.2239,4493.4,4493.3,0.2132]
[1758087967099,4.2239,4493.4,4493.3,0.512]
[1758087967302,4.2239,4493.4,4492.9,0.2988]
[1758087967598,0.2069,4492.8,4492.7,0.7286]
[1758087968800,0.2069,4492.8,4492.7,1.0036]
[1758087969297,0.7411,4492.8,4492.7,0.275]
[1758087969600,0.7411,4492.8,4492.7,0.787]
[1758087969801,0.7411,4492.8,4492.7,1.0036]
[1758087971900,3.9489,4492.8,4492.5,0.2988]
[1758087972108,0.7411,4492.6,4492.5,0.5728]
[1758087972609,0.7411,4492.6,4492.5,0.274]
[1758087973298,0.7411,4492.6,4492.5,0.786]
[1758087974108,0.7411,4492.6,4492.5,0.4872]
[1758087974304,0.7411,4492.6,4492.5,0.274]
[1758087975205,0.7411,4492.6,4492.5,0.4872]
[1758087975409,0.7411,4492.6,4492.5,0.786]
[1758087975707,0.7411,4492.6,4492.5,0.512]
[1758087975904,0.7411,4492.6,4492.5,0.2132]
[1758087976300,0.7411,4492.6,4492.4,0.0222]
[1758087976610,0.8687,4492.5,4492.4,0.0222]
[1758087976997,0.3207,4492.4,4492.1,0.2988]
[1758087977203,0.7411,4492.2,4492.1,0.7286]
[1758087977600,0.548,4492.0,4491.9,0.2988]
[1758087977904,0.8687,4492.0,4491.9,0.512]
[1758087978114,0.7411,4492.0,4491.9,0.7286]
[1758087978309,0.93269377,4492.0,4491.9,0.7286]
[1758087979306,0.93269377,4492.0,4491.1,1.58091329]
[1758087979307,0.7411,4491.2,4491.1,0.7286]
[1758087979509,0.3207,4491.1,4490.8,3.2078]
[1758087979708,0.7411,4490.9,4490.8,3.421]
[1758087979904,0.93269377,4490.9,4490.8,3.421]
[1758087980103,5.20569377,4490.9,4490.6,0.0222]
[1758087980311,0.7411,4490.7,4490.6,0.0222]
[1758087980611,0.93269377,4490.7,4490.6,0.0222]
[1758087983013,0.93269377,4490.7,4489.9,0.5718]
[1758087983213,0.7411,4490.0,4489.9,1.0016]
[1758087983614,0.7411,4490.0,4489.9,0.2132]
[1758087983615,1.05954641,4490.0,4489.9,0.2132]
[1758087984010,1.05954641,4490.0,4489.3,32.327]
[1758087984213,0.7411,4489.7,4489.6,0.7286]
[1758087984714,0.4204,4489.7,4489.6,0.7286]
[1758087986417,0.7411,4489.7,4489.6,0.7286]
[1758087988213,0.1199,4489.5,4489.4,0.0222]
[1758087988513,0.5332,4489.5,4489.2,3.2078]
[1758087988705,0.4133,4489.3,4489.2,3.2078]
[1758087989015,0.3119,4489.2,4488.7,3.4808]
[1758087989215,0.7252,4488.9,4488.8,0.7216]
[1758087990621,0.4133,4488.9,4488.8,0.7216]
[1758087990919,0.7252,4488.9,4488.8,0.7216]
[1758087991821,0.7252,4488.8,4488.6,0.0222]
[1758087992517,0.7252,4488.8,4488.6,0.3329]
[1758087992914,0.7252,4488.8,4488.6,0.0222]
[1758087993115,0.7252,4488.7,4488.6,0.5455]
[1758087993922,0.7252,4488.7,4488.6,0.7438]
[1758087994121,0.9972,4488.7,4488.6,0.7438]
[1758087994421,0.2014,4489.1,4489.0,0.85]
[1758087994623,0.4734,4489.1,4489.0,0.85]
[1758087995319,0.2014,4489.1,4489.0,0.85]
[1758087996113,0.4734,4489.1,4489.0,0.85]
[1758087996918,0.7853,4489.1,4489.0,0.85]
[1758087997119,0.7252,4489.1,4489.0,0.85]
[1758087997321,0.9972,4489.1,4489.0,0.85]
[1758087997822,0.7252,4489.1,4489.0,0.85]
[1758087998016,0.9972,4489.1,4489.0,0.85]
[1758087998214,0.9972,4489.1,4489.0,0.7216]
[1758087998520,0.7252,4489.1,4489.0,0.7216]
[1758087998720,0.9972,4489.1,4489.0,0.7216]
[1758087999115,0.9972,4489.1,4488.8,0.0222]
[1758087999317,0.7252,4488.9,4488.8,0.0222]
[1758088000319,3.933,4488.9,4488.8,0.0222]
[1758088000627,0.4133,4488.3,4488.2,3.7311]
[1758088000923,0.9972,4488.3,4488.2,3.9294]
[1758088001220,0.9972,4488.3,4488.2,0.7216]
[1758088003619,0.9972,4488.3,4488.0,0.3329]
[1758088003820,0.7252,4488.1,4488.0,0.0222]
[1758088004411,0.7252,4488.1,4488.0,0.2348]
[1758088005011,0.7252,4488.1,4488.0,0.5455]
[1758088005819,3.2078,4488.4,4488.0,0.5615]
[1758088006016,0.271,4488.1,4488.0,0.8722]
[1758088006421,0.4724,4488.1,4488.0,0.8722]
[1758088006825,0.7843,4488.1,4488.0,0.8722]
[1758088007126,0.9962,4488.1,4488.0,0.8722]
[1758088007323,1.18707849,4488.1,4488.0,0.85]
[1758088007522,0.91607849,4488.1,4488.0,0.85]
[1758088007825,1.18707849,4488.1,4488.0,0.85]
[1758088010323,1.18707849,4488.1,4488.0,0.5233]
[1758088011224,0.4133,4487.9,4487.8,0.0222]
[1758088011429,0.91607849,4487.9,4487.8,0.0222]
[1758088011631,0.91607849,4487.9,4487.8,0.5455]
[1758088012817,0.91607849,4487.9,4487.8,0.7438]
[1758088014720,0.91607849,4487.9,4487.8,0.7216]
[1758088016933,0.91607849,4487.9,4487.8,0.5233]
[1758088017127,0.91487849,4487.9,4487.8,0.5292]
[1758088018431,1.18387849,4487.9,4487.8,0.5292]
[1758088019331,1.18387849,4487.9,4487.8,0.7446]
[1758088022734,1.18584151,4487.9,4487.8,0.7446]
[1758088023137,0.91684151,4487.9,4487.8,0.7446]
[1758088023337,1.18484151,4487.9,4487.8,0.7446]
[1758088025227,0.91684151,4487.9,4487.8,0.7446]
[1758088025432,1.18484151,4487.9,4487.8,0.7446]
[1758088033743,0.7098,4487.7,4487.6,0.0222]
[1758088033943,1.41991798,4487.7,4487.6,0.0222]
[1758088034143,0.7098,4487.2,4487.1,0.2984]
[1758088034443,0.7098,4487.2,4487.0,0.5047]
[1758088034444,0.7098,4487.1,4487.0,0.5047]
[1758088034644,0.90264151,4487.1,4487.0,0.5047]
[1758088035541,0.5397,4487.0,4486.9,0.5047]
[1758088035736,0.5397,4487.0,4486.4,0.47689826]
[1758088035737,0.73254151,4487.0,4486.4,0.47689826]
[1758088035943,0.4106,4486.5,4486.4,0.7178]
[1758088036137,1.16864151,4486.5,4486.4,0.7178]
[1758088037744,0.66294151,4486.5,4486.4,1.51224216]
[1758088037944,0.96214151,4486.5,4486.4,1.51224216]
[1758088038143,1.29774151,4486.5,4486.4,0.5047]
[1758088038348,7.10951583,4486.5,4486.2,0.0222]
[1758088038544,0.7098,4486.3,4486.2,0.0222]
[1758088038746,0.2992,4486.2,4485.3,0.44589608]
[1758088039052,0.7098,4485.4,4485.3,0.95059608]
[1758088039248,1.16964151,4485.4,4485.3,1.16369608]
[1758088039949,1.16964151,4485.4,4485.3,0.44589608]
[1758088042751,1.96408367,4485.4,4485.3,0.44589608]
[1758088043251,9.17188367,4485.4,4485.3,0.44589608]
[1758088043452,9.39483367,4485.4,4484.5,0.0222]
[1758088043658,0.4231,4484.6,4484.5,0.3206]
[1758088043853,0.88294151,4484.6,4484.5,0.3206]
[1758088044052,45.68294151,4484.6,4484.5,0.0222]
[1758088044558,42.47738367,4484.6,4484.5,0.0222]
[1758088044754,42.21038367,4484.6,4484.5,0.3206]
[1758088044954,42.48239872,4484.6,4484.5,0.3206]
[1758088045148,46.48239872,4484.6,4484.5,0.0222]
[1758088045353,0.2512,4483.9,4483.8,0.2984]
[1758088045549,4.52044216,4483.9,4483.8,0.2984]
[1758088045758,3.726,4483.9,4483.8,0.7178]
[1758088045954,0.1256,4483.9,4483.8,0.7178]
[1758088046156,3.459,4484.4,4484.3,0.2063]
[1758088046456,3.726,4484.4,4484.3,0.5047]
[1758088046656,3.8045,4484.4,4484.3,0.5047]
[1758088046851,0.2512,4484.1,4484.0,0.1286]
[1758088047050,1.55189484,4484.1,4483.5,0.1286]
[1758088047249,0.2512,4483.7,4483.6,0.2063]
[1758088047456,0.5182,4483.7,4483.6,0.5047]
[1758088048463,0.5182,4483.7,4483.6,0.7178]
[1758088049255,0.5969,4483.7,4483.6,0.5047]
[1758088049455,0.5969,4483.7,4483.6,0.2984]
[1758088050750,0.5182,4483.7,4483.6,0.2984]
[1758088050949,0.5969,4483.7,4483.6,0.2984]
[1758088051858,0.2506,4483.2,4483.1,0.5045]
[1758088052058,1.47379484,4483.2,4483.1,0.5045]
[1758088053360,1.55249484,4483.2,4483.1,0.3092]
[1758088053761,4.76029484,4483.2,4483.1,0.3092]
[1758088054260,4.76029484,4483.2,4482.5,0.1286]
[1758088054261,0.0787,4483.1,4483.0,0.4378]
[1758088054564,0.3293,4483.1,4483.0,0.4378]
[1758088056063,3.4584,4483.2,4483.1,0.7086]
[1758088056266,3.8051,4483.2,4483.1,0.5045]
[1758088056462,3.5371,4483.2,4483.1,0.5045]
[1758088056658,44.6051,4483.2,4483.1,0.5045]
[1758088056961,45.21359484,4483.2,4483.1,0.7086]
[1758088057162,45.48159484,4483.2,4483.1,0.7086]
[1758088058163,45.48159484,4483.2,4483.1,0.5045]
[1758088059065,0.2506,4482.7,4482.6,0.5045]
[1758088059271,1.47379484,4482.7,4482.6,0.5045]
[1758088059573,1.47379484,4482.7,4482.6,0.7086]
[1758088064774,4.95809417,4482.7,4482.6,0.3092]
[1758088065371,4.95809417,4482.7,4482.1,0.3092]
[1758088065567,1.20579484,4482.3,4482.2,0.1953]
[1758088065874,1.67159417,4482.3,4482.2,0.5045]
[1758088066075,1.67159417,4482.3,4482.0,0.4378]
[1758088066277,0.3293,4482.1,4482.0,0.4378]
[1758088066477,0.52709933,4482.1,4482.0,0.4378]
[1758088066671,0.0789,4482.0,4481.0,0.1187]
[1758088066875,1.20579484,4481.1,4481.0,0.6232]
[1758088067172,0.2506,4480.7,4480.6,0.5045]
[1758088067379,0.71739933,4480.7,4480.6,0.7086]
[1758088067572,0.44839933,4480.7,4480.6,0.7086]
[1758088067771,0.46679933,4480.7,4480.6,0.7086]
[1758088071176,0.71739933,4480.7,4480.6,0.7086]
[1758088071575,0.59209933,4480.7,4480.6,0.7086]
[1758088071778,0.46679933,4480.7,4480.6,3.9164]
[1758088074482,0.19779933,4480.7,4480.6,3.9164]
[1758088074674,0.19779933,4480.7,4480.6,3.6072]
[1758088074871,0.269,4481.5,4481.4,0.3994]
[1758088075075,0.4838,4481.5,4481.4,0.3994]
[1758088075379,0.54097041,4481.5,4481.4,0.7086]
[1758088075573,3.4768,4481.7,4481.6,0.3076]
[1758088075775,4.01778347,4481.7,4481.6,0.7206]
[1758088075975,0.54098347,4481.7,4481.6,0.7206]
[1758088076184,3.2078,4482.2,4482.1,0.7206]
[1758088076481,3.7488523,4482.2,4482.1,0.7206]
[1758088076676,0.269,4482.3,4482.1,0.7206]
[1758088076878,0.269,4482.3,4482.2,0.7206]
[1758088077181,0.81000684,4482.3,4482.2,0.7206]
[1758088077382,1.00640684,4482.3,4482.2,0.7206]
[1758088077579,0.1964,4482.3,4482.2,0.7206]
[1758088078280,0.6965,4482.8,4482.7,0.7258]
[1758088078479,1.2377814,4482.8,4482.7,0.7258]
[1758088078680,2.46987624,4482.8,4482.7,0.7258]
[1758088080990,1.2377814,4482.8,4482.7,0.7258]
[1758088081180,0.5412814,4482.8,4482.7,0.7258]
[1758088081986,3.2078,4483.4,4482.7,0.7258]
[1758088081987,3.2078,4483.4,4483.2,0.3134]
[1758088082187,0.54155985,4483.3,4483.2,0.7258]
[1758088082390,0.54155985,4483.3,4483.2,3.9336]
[1758088082580,3.2078,4483.9,4483.8,0.4124]
[1758088082888,3.95936771,4483.9,4483.8,0.7258]
[1758088084185,3.95936771,4483.9,4483.6,0.3134]
[1758088084186,3.6343,4483.9,4483.6,0.3134]
[1758088084390,0.7034,4483.3,4483.2,0.0223]
[1758088084583,0.21,4483.6,4483.5,0.1195]
[1758088084785,0.75137959,4483.6,4483.5,0.5319]
[1758088084986,0.21,4483.6,4483.5,0.5319]
[1758088085193,0.271,4483.8,4483.7,0.4124]
[1758088085491,3.2078,4484.0,4483.8,0.3134]
[1758088085692,3.2078,4484.0,4483.9,0.7258]
[1758088086897,3.40532322,4484.0,4483.9,0.7258]
[1758088087392,0.19752322,4484.0,4483.9,0.7258]
[1758088087792,1.60020735,4485.9,4484.0,0.4329]
[1758088087793,0.2769,4485.1,4484.0,0.4329]
[1758088087982,0.4265,4485.1,4485.0,0.8453]
[1758088088695,0.21,4485.1,4485.0,0.8453]
[1758088088889,3.9043,4485.7,4485.6,0.2139]
[1758088089096,3.9043,4485.7,4485.6,0.7258]
[1758088089398,3.6343,4485.7,4485.6,0.7258]
[1758088090885,3.9112,4485.7,4485.6,0.7258]
[1758088091195,0.4265,4485.5,4485.4,0.5273]
[1758088091393,0.4265,4485.5,4485.4,0.7258]
[1758088092193,3.2078,4485.7,4485.4,0.7258]
[1758088092498,3.2078,4485.7,4485.6,0.7258]
[1758088092797,3.4178,4485.7,4485.6,0.7258]
[1758088093790,41.069,4486.4,4485.6,0.4124]
[1758088093998,0.6955,4486.4,4486.3,0.5273]
[1758088094690,0.9724,4486.4,4486.3,0.5273]
[1758088094886,0.6955,4486.4,4486.3,0.5273]
[1758088095195,0.4265,4486.4,4486.3,0.7258]
[1758088095592,0.21,4486.4,4486.3,0.7258]
[1758088095998,3.2078,4486.5,4486.4,0.3134]
[1758088096298,3.4178,4486.5,4486.4,0.7258]
[1758088097094,3.2078,4486.5,4486.4,0.7258]
[1758088097496,0.267,4487.5,4486.5,0.1195]
[1758088097497,3.2078,4487.0,4486.5,0.1195]
[1758088097800,3.2078,4487.0,4486.9,0.7258]
[1758088097801,3.4178,4487.0,4486.9,0.7258]
[1758088098193,3.6343,4487.0,4486.9,0.7258]
[1758088098799,3.2078,4487.0,4486.9,0.7258]
[1758088099000,3.4178,4487.0,4486.9,0.7258]
[1758088100001,3.2078,4487.0,4486.9,0.7258]
[1758088101501,3.6343,4487.9,4487.8,0.2139]
[1758088101701,3.9112,4487.9,4487.8,0.5273]
[1758088102097,0.7034,4487.9,4487.8,0.3134]
[1758088102590,0.4265,4487.7,4487.4,3.2078]
[1758088102790,0.2769,4487.6,4487.5,0.3134]
[1758088102995,0.7034,4487.6,4487.5,0.3134]
[1758088103500,3.2078,4488.4,4487.6,0.3134]
[1758088104697,3.2078,4488.4,4488.3,0.2139]
[1758088104698,0.4265,4488.4,4488.3,0.2139]
[1758088104896,0.4265,4488.4,4488.3,0.7258]
[1758088105303,0.21,4488.4,4488.3,0.7258]
[1758088106006,0.4265,4488.4,4488.3,0.7258]
[1758088106304,0.7034,4488.4,4488.3,0.5273]
[1758088106494,0.7034,4488.4,4488.3,0.3134]
[1758088107808,0.4265,4488.4,4488.3,0.7258]
[1758088108208,0.21,4488.4,4488.3,0.7258]
[1758088108414,0.4226,4488.8,4488.7,0.427]
[1758088108607,0.4226,4488.8,4488.7,0.7473]
[1758088108908,0.6989,4488.8,4488.7,0.7473]
[1758088109110,0.4226,4488.8,4488.7,0.7473]
[1758088109607,0.2148,4488.8,4488.7,0.7473]
[1758088109812,0.714,4489.4,4488.7,0.7473]
[1758088110106,0.2148,4488.9,4488.8,0.7473]
[1758088110508,0.4226,4488.9,4488.8,0.7473]
[1758088113811,0.4226,4488.9,4488.5,0.3203]
[1758088114108,0.6989,4488.6,4488.5,0.3203]
[1758088114310,0.6989,4488.6,4488.5,0.6524]
[1758088116915,0.6989,4488.6,4488.5,0.9134]
[1758088117115,0.4226,4488.6,4488.5,0.9134]
[1758088117314,0.4226,4488.6,4488.5,1.1288]
[1758088118123,0.96299806,4488.6,4488.5,1.1288]
[1758088119218,0.54039806,4488.6,4488.5,1.1288]
[1758088122621,0.96299806,4488.6,4488.5,0.4408]
[1758088122927,0.96299806,4488.6,4488.5,0.9114]
[1758088123127,0.96299806,4488.6,4488.5,1.1268]
[1758088124833,0.54039806,4488.6,4488.5,1.1268]
[1758088129227,0.54039806,4488.6,4488.5,1.1248]
[1758088134232,0.8726,4489.4,4489.3,0.7473]
[1758088134426,1.40779241,4489.4,4489.3,1.0033]
[1758088136133,1.19999241,4489.4,4489.3,1.0033]
[1758088136439,0.98519241,4489.4,4489.3,1.0033]
[1758088137041,0.45,4489.4,4489.3,1.0033]
[1758088137832,0.258,4490.4,4490.3,0.4066]
[1758088138129,1.24320067,4490.4,4490.3,0.9791]
[1758088138333,0.7167,4490.4,4490.3,0.9791]
[1758088138935,0.7052,4490.4,4490.3,0.9791]
[1758088139631,0.7864,4491.0,4490.9,0.5134]
[1758088139831,1.30998199,4491.0,4490.9,0.255]
[1758088140032,0.7073,4490.6,4490.5,3.2078]
[1758088140237,0.7073,4490.6,4490.5,3.4628]
[1758088141839,0.7073,4490.6,4490.5,3.6748]
[1758088142035,0.4136,4490.6,4490.5,4.308]
[1758088142334,0.7073,4491.3,4491.2,0.212]
[1758088142539,1.23034851,4491.3,4491.2,0.7267]
[1758088142933,1.23034851,4491.3,4491.2,0.9807]
[1758088143242,0.7073,4491.3,4491.2,0.9807]
[1758088145335,0.2126,4491.4,4491.3,0.7267]
[1758088145534,0.7073,4491.4,4491.3,0.212]
[1758088145739,0.4136,4491.4,4491.3,0.253]
[1758088146237,0.4136,4491.4,4491.3,0.212]
[1758088146430,0.4136,4491.4,4490.5,3.3263]
[1758088146431,7.6214,4491.4,4490.5,3.2078]
[1758088146629,0.4136,4490.7,4490.6,0.253]
[1758088146835,0.7073,4490.7,4490.6,0.465]
[1758088147031,0.7073,4490.7,4490.6,0.9797]
[1758088147238,0.7073,4491.3,4491.2,0.212]
[1758088147539,0.7073,4491.3,4491.2,0.5134]
[1758088147843,0.7073,4491.3,4491.2,0.7267]
[1758088148040,0.2937,4491.8,4491.3,0.3014]
[1758088148243,0.7073,4491.8,4491.7,0.7267]
[1758088148942,0.4136,4491.8,4491.1,0.3014]
[1758088149141,3.2078,4491.9,4491.0,3.3263]
[1758088149142,0.7073,4491.7,4491.6,0.7267]
[1758088149340,0.7073,4491.7,4491.6,0.9797]
[1758088149739,0.7073,4491.7,4491.6,0.7267]
[1758088149939,0.7073,4491.7,4491.6,0.9787]
[1758088151439,3.2078,4491.9,4491.7,0.3014]
[1758088151644,0.5063,4492.6,4492.5,0.8452]
[1758088151839,0.2126,4492.6,4492.5,1.0982]
[1758088152038,0.7073,4493.4,4493.3,0.212]
[1758088152243,0.7073,4493.4,4493.3,0.7267]
[1758088152545,3.4204,4493.6,4493.5,0.5438]
[1758088152747,3.4204,4493.6,4493.5,0.8452]
[1758088152946,3.2078,4493.6,4493.5,0.8452]
[1758088153246,3.7141,4494.1,4494.0,0.4253]
[1758088153447,0.7073,4494.1,4494.0,0.7267]
[1758088153749,0.7073,4494.1,4494.0,0.8452]
[1758088154740,0.4136,4494.1,4494.0,0.8452]
[1758088154942,0.7073,4495.3,4494.7,0.3014]
[1758088155145,0.4136,4494.4,4494.3,0.4253]
[1758088155345,0.4136,4494.4,4494.3,0.9787]
[1758088155346,0.7073,4494.4,4494.3,0.9787]
[1758088155746,0.4136,4494.4,4494.3,0.9787]
[1758088156440,0.7073,4494.4,4494.3,0.9787]
[1758088156638,0.7073,4494.4,4494.3,0.7267]
[1758088156842,0.7073,4494.4,4494.3,0.9787]
[1758088157249,0.7073,4494.4,4494.3,0.7267]
[1758088157447,0.4136,4494.4,4494.3,0.9787]
[1758088157645,0.4136,4494.4,4494.3,0.7267]
[1758088157845,0.4136,4494.4,4494.3,0.9787]
[1758088158243,0.2126,4494.4,4494.3,0.9787]
[1758088158446,0.2126,4495.0,4494.9,0.7267]
[1758088158650,0.2126,4495.0,4494.9,0.9787]
[1758088158854,3.4204,4495.2,4495.1,0.7267]
[1758088159052,0.7073,4495.2,4495.1,0.7267]
[1758088159453,0.2126,4495.2,4495.1,0.9787]
[1758088159947,0.2937,4495.6,4495.2,0.3014]
[1758088160153,0.2126,4495.6,4495.5,0.8452]
[1758088160653,0.5063,4495.9,4495.8,0.7267]
[1758088161054,0.2937,4496.3,4495.9,0.3014]
[1758088161255,0.2126,4496.3,4496.2,0.7267]
[1758088162555,0.2126,4496.3,4495.7,3.2078]
[1758088162556,0.2937,4496.2,4495.7,3.2078]
[1758088162752,0.7073,4495.9,4495.8,0.9777]
[1758088163054,0.2126,4495.9,4495.8,0.9777]
[1758088164649,0.2937,4496.2,4495.9,0.3014]
[1758088164852,0.2126,4496.1,4496.0,0.3695]
[1758088165054,0.2126,4496.1,4496.0,1.0962]
[1758088165350,0.2126,4496.1,4496.0,0.8452]
[1758088165549,0.2937,4496.6,4496.0,0.7938]
[1758088165748,0.2126,4496.2,4496.1,0.7267]
[1758088165947,0.7073,4496.2,4496.1,0.7267]
[1758088166150,0.2126,4496.2,4496.1,0.9767]
[1758088166350,0.2126,4496.2,4496.1,0.6753]
[1758088166551,0.7073,4496.2,4496.1,0.6753]
[1758088166860,0.7073,4496.2,4496.1,0.7267]
[1758088167060,0.7073,4496.2,4496.1,0.9767]
[1758088167257,0.2937,4496.1,4495.8,0.3014]
[1758088167461,0.2937,4495.9,4495.4,0.3014]
[1758088167760,0.7073,4495.5,4495.4,0.5134]
[1758088167965,0.7073,4495.5,4495.4,0.7634]
[1758088168152,0.7073,4495.5,4495.4,0.7267]
[1758088168355,0.7073,4495.5,4495.4,0.9767]
[1758088168758,0.3055,4495.4,4495.2,3.2078]
[1758088168957,0.7164,4495.3,4495.2,3.4177]
[1758088169258,0.3055,4495.2,4495.0,0.249]
[1758088169457,0.7164,4495.1,4495.0,0.249]
[1758088169764,0.7164,4495.1,4495.0,0.4589]
[1758088170063,0.7164,4494.8,4494.7,3.725]
[1758088170257,0.7164,4494.8,4494.7,3.2078]
[1758088170450,0.198,4494.9,4494.8,0.3073]
[1758088170761,0.1235,4497.0,4495.6,0.7133]
[1758088170762,0.7164,4495.7,4495.6,0.7133]
[1758088171655,0.4109,4495.1,4495.0,0.5172]
[1758088171859,0.7164,4494.8,4494.7,3.2078]
[1758088172156,0.3055,4495.2,4494.7,4.1701]
[1758088172457,0.4109,4494.9,4494.8,0.5563]
[1758088172661,0.1235,4495.5,4494.8,0.9623]
[1758088172856,0.5035,4495.4,4495.3,0.7133]
[1758088173257,0.3055,4495.7,4495.3,0.9623]
[1758088173457,0.5035,4495.7,4495.6,0.7133]
[1758088173660,0.3055,4495.6,4495.5,0.249]
[1758088173861,0.198,4495.6,4495.5,1.0871]
[1758088174062,0.198,4495.6,4495.5,0.8381]
[1758088174364,0.7164,4495.6,4495.5,0.9623]
[1758088174561,0.7164,4495.6,4495.5,0.7133]
[1758088175862,0.7164,4495.6,4495.5,0.2099]
[1758088176563,0.7164,4495.1,4495.0,0.5172]
[1758088176963,0.7164,4495.1,4495.0,0.7133]
[1758088177964,0.7164,4495.1,4495.0,0.4579]
[1758088178866,0.7164,4495.1,4495.0,0.248]
[1758088179065,0.3055,4495.0,4494.9,0.2099]
[1758088179260,0.8399,4495.0,4494.9,0.2099]
[1758088179459,0.7164,4495.0,4494.9,0.7133]
[1758088181273,0.8399,4495.0,4494.9,0.2099]
[1758088181572,1.35711553,4495.0,4494.9,0.5172]
[1758088181866,1.35711553,4495.0,4494.9,0.2099]
[1758088182063,1.35711553,4495.0,4494.7,3.2078]
[1758088182064,0.4109,4494.8,4494.7,3.4548]
[1758088182265,0.7164,4494.8,4494.7,3.2078]
[1758088182463,1.23361553,4494.8,4494.7,3.2078]
[1758088183766,8.34222139,4494.8,4493.5,0.1248]
[1758088183974,3.2078,4493.6,4493.5,0.5308]
[1758088184169,3.72501553,4493.6,4493.5,0.5308]
[1758088185975,3.72501553,4493.6,4493.5,0.8381]
[1758088187378,3.2078,4493.6,4493.5,0.8381]
[1758088187571,43.96710586,4495.4,4493.5,0.8381]
[1758088187572,3.2078,4494.1,4494.0,0.8381]
[1758088187770,3.72462129,4494.1,4494.0,0.8381]
[1758088190273,3.2078,4494.1,4494.0,0.8381]
[1758088190674,3.2078,4494.1,4494.0,0.642]
[1758088190868,3.72428714,4494.1,4494.0,0.642]
[1758088191077,3.72428714,4494.1,4494.0,0.4321]
[1758088193076,7.94680714,4494.1,4493.5,0.1248]
[1758088193283,3.2078,4493.6,4493.5,0.1248]
[1758088193482,3.4548,4493.6,4493.5,0.1248]
[1758088194777,3.4548,4493.6,4493.5,0.3347]
[1758088194977,3.4548,4493.6,4493.5,0.6566]
[1758088195184,3.2078,4493.6,4493.5,0.8671]
[1758088195385,3.4548,4493.6,4493.5,0.8671]
[1758088195780,3.4548,4493.6,4493.5,0.6566]
[1758088195979,3.4548,4493.6,4493.5,0.4467]
[1758088196278,3.4548,4493.6,4493.5,0.1248]
[1758088196481,3.4548,4493.6,4493.5,0.4467]
[1758088200585,7.4548,4493.6,4493.3,0.0222]
[1758088200887,3.4548,4493.6,4493.3,0.0222]
[1758088201081,3.4548,4493.6,4493.0,0.4476]
[1758088201288,3.2078,4493.1,4493.0,0.4476]
[1758088201490,3.4548,4493.1,4493.0,0.4476]
[1758088204789,3.4548,4493.1,4492.6,0.3228]
[1758088205090,3.2078,4492.7,4492.6,0.3228]
[1758088205284,3.4548,4492.7,4492.6,0.3228]
[1758088205480,44.2548,4492.7,4492.6,0.3228]